bitfinex/quotes_SOLUSD_20240930
["timestamp","ask_amount","ask_price","bid_price","bid_amount"]
[1727713218935,16.3453,155.0,154.95,10.4603029]
[1727713219334,1.61339852,154.99,154.93,10.4603029]
[1727713219826,1.61339852,154.99,154.9,6.73244152]
[1727713220027,1.61339852,154.99,154.93,10.4603029]
[1727713220647,1.61339852,154.99,154.9,6.73244152]
[1727713220834,1.61339852,154.99,154.92,10.4603029]
[1727713221853,1.61339852,154.99,154.9,6.73244152]
[1727713222034,1.61339852,154.99,154.92,10.4603029]
[1727713223433,1.61339852,154.99,154.9,6.73244152]
[1727713223653,6.1615,154.98,154.89,10.4603029]
[1727713223953,1.61380287,154.97,154.89,10.4603029]
[1727713224150,1.61380287,154.97,154.87,6.73337802]
[1727713224361,1.61380287,154.97,154.89,10.4603029]
[1727713224540,15.6767,154.96,154.89,10.4603029]
[1727713224858,1.61388435,154.95,154.89,10.4603029]
[1727713225038,1.61388435,154.95,154.87,6.73337802]
[1727713225240,1.61388435,154.95,154.87,10.4603029]
[1727713227061,6.5608,154.94,154.87,10.4603029]
[1727713227259,1.61415342,154.93,154.87,10.4603029]
[1727713228057,6.5608,154.94,154.87,10.4603029]
[1727713228368,1.61409896,154.93,154.87,10.4603029]
[1727713229247,6.5608,154.94,154.87,10.4603029]
[1727713229681,6.5608,154.94,154.89,10.4603029]
[1727713229850,6.5608,154.94,154.91,10.4603029]
[1727713230050,15.6767,154.96,154.86,1.2912182]
[1727713230051,15.6767,154.96,154.93,10.4603029]
[1727713230258,15.6767,154.96,154.86,1.2912182]
[1727713230259,15.6767,154.96,154.95,10.4603029]
[1727713231773,15.6767,154.96,154.92,16.38162277]
[1727713235756,1.6135746,154.95,154.92,16.38162277]
[1727713235967,15.6767,154.96,154.92,16.38162277]
[1727713236951,1.61356905,154.95,154.92,16.38162277]
[1727713238050,1.61356905,154.95,154.9,16.38162277]
[1727713238261,1.61356905,154.95,154.88,16.38162277]
[1727713238665,15.6767,154.96,154.88,16.38162277]
[1727713239052,15.6767,154.96,154.89,1.29103709]
[1727713240271,15.6767,154.96,154.89,1.29103671]
[1727713240462,15.6767,154.96,154.88,16.38162277]
[1727713240655,15.6767,154.96,154.9,16.38162277]
[1727713241256,15.6767,154.96,154.87,6.72798931]
[1727713241574,1.61389824,154.95,154.87,6.72798931]
[1727713241865,1.61389824,154.95,154.86,3.86354225]
[1727713242188,1.61389824,154.95,154.85,16.38162277]
[1727713242189,15.6767,154.96,154.85,23.11237875]
[1727713242355,15.6767,154.96,154.86,3.86354225]
[1727713242786,15.6767,154.96,154.87,16.38162277]
[1727713243081,17.29071545,154.96,154.87,16.38162277]
[1727713244561,15.6767,154.96,154.87,16.38162277]
[1727713244884,1.61387672,154.95,154.87,16.38162277]
[1727713245353,1.61373186,154.94,154.87,16.38162277]
[1727713245560,15.6767,154.96,154.87,16.38162277]
[1727713246768,1.61383578,154.95,154.87,16.38162277]
[1727713248168,1.61383939,154.94,154.87,16.38162277]
[1727713249282,1.61385018,154.93,154.87,16.38162277]
[1727713249484,1.61385845,154.95,154.87,16.38162277]
[1727713249690,15.6767,154.96,154.87,16.38162277]
[1727713250361,1.61384696,154.95,154.87,16.38162277]
[1727713251184,15.6767,154.96,154.87,16.38162277]
[1727713251384,1.61388929,154.95,154.87,16.38162277]
[1727713251966,15.6767,154.96,154.87,16.38162277]
[1727713252582,15.6767,154.96,154.88,1.29111142]
[1727713252793,15.6767,154.96,154.89,16.38162277]
[1727713253203,1.61384649,154.95,154.89,16.38162277]
[1727713253683,1.61384649,154.95,154.9,10.48971194]
[1727713253885,1.61384649,154.95,154.86,3.88201115]
[1727713254074,15.6767,154.96,154.9,10.48971194]
[1727713254385,1.61389911,154.95,154.9,10.48971194]
[1727713256963,15.6767,154.96,154.9,10.48971194]
[1727713257769,15.6767,154.96,154.9,14.37172309]
[1727713257983,15.6767,154.96,154.9,10.48971194]
[1727713258580,15.6767,154.96,154.91,3.88201115]
[1727713258780,15.6767,154.96,154.9,10.48971194]
[1727713258781,15.6767,154.96,154.92,3.90123589]
[1727713259159,15.6767,154.96,154.91,3.90123589]
[1727713259491,15.6767,154.96,154.92,3.90123589]
[1727713259798,15.6767,154.96,154.93,3.90123589]
[1727713259977,15.6767,154.96,154.91,3.90123589]
[1727713260172,15.6767,154.96,154.92,3.90123589]
[1727713260368,15.6767,154.96,154.94,10.48971194]
[1727713260566,15.6767,154.96,154.95,3.90123589]
[1727713260881,15.6767,154.96,154.94,10.48971194]
[1727713261284,1.61356351,154.95,154.85,6.72118163]
[1727713261472,1.61356351,154.95,154.93,10.48971194]
[1727713261868,1.61356351,154.95,154.91,10.48971194]
[1727713262480,15.6767,154.96,154.91,10.48971194]
[1727713262692,15.6767,154.96,154.93,10.48971194]
[1727713262886,15.6767,154.96,154.94,3.90578899]
[1727713263095,15.6767,154.96,154.93,10.48971194]
[1727713263784,1.61357647,154.95,154.93,10.48971194]
[1727713264800,15.6767,154.96,154.93,10.48971194]
[1727713265695,1.61357547,154.95,154.85,6.71517101]
[1727713265874,1.61357547,154.95,154.92,10.48971194]
[1727713266596,15.6767,154.96,154.92,10.48971194]
[1727713267903,15.6767,154.96,154.94,10.48971194]
[1727713268089,16.2642,155.0,154.94,10.48971194]
[1727713268277,16.2642,155.0,154.97,10.48971194]
[1727713269590,1.61321219,154.99,154.97,10.48971194]
[1727713270100,16.2642,155.0,154.97,10.48971194]
[1727713270603,16.2642,155.0,154.89,1.29061094]
[1727713270779,1.61336804,154.99,154.96,10.48971194]
[1727713271090,16.2642,155.0,154.96,10.48971194]
[1727713271091,1.6133452,154.98,154.96,10.48971194]
[1727713271403,16.2642,155.0,154.96,10.48971194]
[1727713271984,1.61339655,154.99,154.88,16.5513]
[1727713272202,22.7162,155.0,154.93,10.48971194]
[1727713274207,16.2642,155.0,154.95,10.48971194]
[1727713274591,16.2642,155.0,154.97,10.48971194]
[1727713276491,1.61310038,154.99,154.97,10.48971194]
[1727713277502,1.61310038,154.99,154.95,10.48971194]
[1727713278104,16.2642,155.0,154.95,10.48971194]
[1727713279392,16.2642,155.0,154.97,10.48971194]
[1727713279605,6.5218,155.02,154.99,10.48971194]
[1727713279907,15.8371,155.04,155.01,10.48971194]
[1727713280201,15.8371,155.04,155.03,10.48971194]
[1727713280597,6.335,155.06,155.03,10.48971194]
[1727713280798,6.335,155.06,155.05,10.48971194]
[1727713281501,6.335,155.06,154.94,15.3861]
[1727713281502,6.335,155.06,155.03,10.48971194]
[1727713281804,1.6125404,155.05,155.01,16.36300114]
[1727713282008,6.335,155.06,155.01,16.36300114]
[1727713282508,16.3581,155.08,155.01,16.36300114]
[1727713282897,16.3581,155.08,155.02,1.29004024]
[1727713284300,1.61247628,155.07,155.01,16.36300114]
[1727713285182,16.3581,155.08,155.01,16.36300114]
[1727713285613,16.3581,155.08,155.02,1.29000096]
[1727713285914,16.3581,155.08,155.03,16.36300114]
[1727713286126,6.1943,155.1,155.05,16.36300114]
[1727713287716,1.61223275,155.09,155.05,16.36300114]
[1727713287923,1.61223275,155.09,155.0,15.8493]
[1727713287924,1.61223275,155.09,155.03,16.36300114]
[1727713289502,6.1943,155.1,155.03,16.36300114]
[1727713290519,1.61230749,155.09,155.03,16.36300114]
[1727713291421,6.1943,155.1,155.05,16.36300114]
[1727713292920,1.61217967,155.09,155.03,16.36300114]
[1727713293802,6.1943,155.1,155.03,16.36300114]
[1727713295003,6.1943,155.1,155.04,1.28989233]
[1727713295403,6.1943,155.1,155.05,16.36300114]
[1727713297520,15.106,155.12,155.07,16.36300114]
[1727713297841,15.106,155.12,155.09,16.36300114]
[1727713298015,15.106,155.12,155.07,16.36300114]
[1727713298331,1.61191845,155.11,155.07,16.36300114]
[1727713298498,15.106,155.12,155.07,16.36300114]
[1727713300325,15.3534,155.16,155.09,16.36300114]
[1727713300525,15.3534,155.16,155.11,16.36300114]
[1727713302245,1.61153197,155.15,155.11,16.36300114]
[1727713302410,1.61153197,155.15,155.06,16.1789]
[1727713302605,1.61153197,155.15,155.09,16.36300114]
[1727713303824,1.61153197,155.15,155.07,16.36300114]
[1727713308806,1.61153197,155.15,155.05,16.36300114]
[1727713309133,8.05683197,155.15,155.05,16.36300114]
[1727713309630,8.05683197,155.15,155.09,10.46483362]
[1727713310033,23.41028961,155.16,155.09,10.46483362]
[1727713312427,15.3534,155.16,155.13,10.46483362]
[1727713314709,1.6115273,155.15,155.13,10.46483362]
[1727713315844,1.6115273,155.15,155.1,16.34320968]
[1727713318342,1.6115273,155.15,155.08,16.34320968]
[1727713319521,15.3534,155.16,155.08,16.34320968]
[1727713322626,15.3534,155.16,155.04,17.50429958]
[1727713322627,6.2309,155.18,155.12,16.34320968]
[1727713322823,6.2309,155.18,155.07,22.95460968]
[1727713322824,6.2309,155.18,155.14,16.34320968]
[1727713323030,15.6916,155.2,155.14,16.34320968]
[1727713323325,1.61122349,155.19,155.14,16.34320968]
[1727713323509,15.6916,155.2,155.14,16.34320968]
[1727713324134,1.61122646,155.19,155.12,16.34320968]
[1727713325615,15.6916,155.2,155.13,1.2890148]
[1727713325829,15.6916,155.2,155.14,16.34320968]
[1727713326026,15.6916,155.2,155.15,1.2889121]
[1727713327016,15.6916,155.2,155.14,16.34320968]
[1727713327639,1.6111764,155.19,155.14,16.34320968]
[1727713327846,1.6111764,155.19,155.07,6.6114]
[1727713328142,6.2619,155.17,155.08,16.34320968]
[1727713328314,6.2619,155.17,155.1,16.34320968]
[1727713329236,1.61149694,155.16,155.1,16.34320968]
[1727713330543,1.61149694,155.16,155.08,16.34320968]
[1727713330840,15.4181,155.15,155.08,16.34320968]
[1727713331136,1.61172208,155.14,155.08,16.34320968]
[1727713331444,1.61172208,155.14,155.06,6.71662537]
[1727713334550,16.5358,155.11,155.06,6.71662537]
[1727713334719,22.9828,155.11,155.0,16.34320968]
[1727713334912,1.61243556,155.1,155.01,6.71504687]
[1727713335629,6.1179,155.09,155.01,6.71504687]
[1727713335935,1.61251955,155.08,155.01,6.71504687]
[1727713337218,6.1179,155.09,155.02,1.29001528]
[1727713337641,6.1179,155.09,155.03,1.28990464]
[1727713338125,6.1179,155.09,155.04,1.28990454]
[1727713338917,6.1179,155.09,155.03,16.34320968]
[1727713339233,1.61223662,155.08,155.03,16.34320968]
[1727713339940,6.1179,155.09,155.04,1.28979462]
[1727713340125,6.1179,155.09,155.03,16.34320968]
[1727713340822,6.1179,155.09,155.01,6.71504687]
[1727713340823,6.1179,155.09,155.05,16.34320968]
[1727713341731,6.1179,155.09,155.06,1.28972218]
[1727713342237,6.1179,155.09,155.05,16.34320968]
[1727713348120,16.5358,155.11,155.06,1.28963341]
[1727713348539,16.5358,155.11,155.05,16.34320968]
[1727713349138,1.61203329,155.1,155.05,16.34320968]
[1727713349643,16.5358,155.11,155.05,16.34320968]
[1727713351446,1.61203218,155.1,155.05,16.34320968]
[1727713351622,16.5358,155.11,155.05,16.34320968]
[1727713353546,16.5358,155.11,155.09,10.46531322]
[1727713354532,1.61197965,155.1,155.07,10.46531322]
[1727713359145,16.5358,155.11,155.07,10.46531322]
[1727713360953,1.61203079,155.1,155.07,10.46531322]
[1727713361355,16.5358,155.11,155.07,10.46531322]
[1727713362264,1.61203233,155.1,155.07,10.46531322]
[1727713365942,1.61203233,155.1,155.05,10.46531322]
[1727713367450,1.61203233,155.1,155.03,6.71429334]
[1727713367451,1.61203233,155.1,155.07,10.46531322]
[1727713368962,16.3482,155.15,155.09,10.46531322]
[1727713369251,6.6142,155.18,155.03,23.22599334]
[1727713369252,6.6142,155.18,155.14,10.46531322]
[1727713369428,6.6142,155.18,155.17,10.46531322]
[1727713369630,286.1982,155.29,155.17,10.46531322]
[1727713369631,6.562,155.22,155.17,10.46531322]
[1727713369935,6.562,155.22,155.21,10.46531322]
[1727713370334,6.5736,155.26,155.21,10.46531322]
[1727713370530,6.5736,155.26,155.23,10.46531322]
[1727713370730,6.5632,155.3,155.25,10.46531322]
[1727713370943,6.5632,155.3,155.17,6.5809]
[1727713370944,6.5632,155.3,155.27,10.46531322]
[1727713371232,15.7446,155.32,155.29,10.46531322]
[1727713371451,7.0581714,155.34,155.31,10.46531322]
[1727713371938,7.0581714,155.34,155.2,1.28797829]
[1727713371939,7.0581714,155.34,155.27,16.30710103]
[1727713372557,1.60987042,155.33,155.2,5.8041264]
[1727713372852,1.60987042,155.33,155.23,16.30710103]
[1727713373055,1.60987042,155.33,155.19,26.4348561]
[1727713373056,1.60987042,155.33,155.21,16.30710103]
[1727713374643,6.4383,155.32,155.21,16.30710103]
[1727713374839,1.61036172,155.31,155.21,16.30710103]
[1727713375039,1.61036172,155.31,155.19,16.30710103]
[1727713375536,6.4392,155.3,155.19,16.30710103]
[1727713375731,7.0581714,155.34,155.19,16.30710103]
[1727713376044,6.4387,155.31,155.19,16.30710103]
[1727713376437,1.61050768,155.3,155.17,16.30710103]
[1727713376962,6.44,155.28,155.17,16.30710103]
[1727713377430,15.2688,155.33,155.17,16.30710103]
[1727713377630,6.4395,155.3,155.17,16.30710103]
[1727713377836,6.4395,155.29,155.17,16.30710103]
[1727713378532,8.05068482,155.28,155.17,16.30710103]
[1727713378735,12.7681,155.27,155.17,16.30710103]
[1727713378959,1.61083032,155.26,155.17,16.30710103]
[1727713379250,15.362,155.25,155.15,16.30710103]
[1727713379563,1.61097833,155.24,155.15,16.30710103]
[1727713381151,8.05267833,155.24,155.13,16.30710103]
[1727713381456,8.05267833,155.24,155.11,16.30710103]
[1727713381457,1.61097833,155.24,155.11,16.30710103]
[1727713382134,6.4424,155.22,155.11,16.30710103]
[1727713382334,8.053688,155.22,155.11,16.30710103]
[1727713383731,1.611288,155.22,155.11,16.30710103]
[1727713383935,6.4429,155.21,155.11,16.30710103]
[1727713384162,8.05473209,155.2,155.09,16.30710103]
[1727713384338,6.4437,155.19,155.09,16.30710103]
[1727713384543,1.61157971,155.18,155.09,16.30710103]
[1727713384751,6.4433,155.2,155.1,1.2892217]
[1727713385459,6.4433,155.2,155.09,16.30710103]
[1727713385839,15.8017,155.19,155.09,16.30710103]
[1727713386035,15.8017,155.19,155.11,16.30710103]
[1727713386337,15.8017,155.19,155.12,1.28912068]
[1727713386530,1.61140052,155.18,155.11,16.30710103]
[1727713387295,1.61140052,155.18,155.08,6.7261642]
[1727713387296,6.4631,155.17,155.08,6.7261642]
[1727713387445,1.6118812,155.16,155.05,16.30710103]
[1727713387640,6.4631,155.17,155.07,16.30710103]
[1727713388347,1.61174218,155.16,155.07,16.30710103]
[1727713388751,6.4631,155.17,155.07,16.30710103]
[1727713393553,6.4631,155.17,155.09,16.30710103]
[1727713393757,6.4631,155.17,155.1,1.28920019]
[1727713395368,1.61146685,155.16,155.09,16.30710103]
[1727713396275,1.61146685,155.16,155.06,6.73097655]
[1727713396276,6.4631,155.17,155.07,16.30710103]
[1727713396459,1.61173751,155.16,155.07,16.30710103]
[1727713396763,6.4631,155.17,155.07,16.30710103]
[1727713397551,15.3188,155.15,155.06,6.73097655]
[1727713397850,1.61199819,155.14,155.06,6.73097655]
[1727713399687,8.05789819,155.14,155.06,6.73097655]
[1727713399963,8.05789819,155.14,155.04,6.73143909]
[1727713400667,6.4459,155.14,155.04,6.73143909]
[1727713400971,8.05798713,155.14,155.04,6.73143909]
[1727713401267,6.4459,155.14,155.04,6.73143909]
[1727713401655,8.05798498,155.14,155.04,6.73143909]
[1727713401864,6.4459,155.14,155.04,6.73143909]
[1727713402172,6.4459,155.14,155.05,1.28966864]
[1727713402673,6.4459,155.14,155.04,6.73143909]
[1727713403074,8.05798452,155.14,155.04,6.73143909]
[1727713404470,15.3188,155.15,155.04,6.73143909]
[1727713404652,21.7642,155.15,155.04,6.73143909]
[1727713405172,1.61208263,155.14,155.04,6.73143909]
[1727713405577,21.7642,155.15,155.05,1.28966647]
[1727713405957,21.7642,155.15,155.04,6.73143909]
[1727713406157,1.61208154,155.14,155.04,6.73143909]
[1727713406461,21.7642,155.15,155.04,6.73143909]
[1727713406671,1.61208256,155.14,155.04,6.73143909]
[1727713406968,8.05778256,155.14,155.04,6.73143909]
[1727713408081,12.9437,155.13,155.04,6.73143909]
[1727713408260,6.4471,155.11,155.04,6.73143909]
[1727713408457,1.61234427,155.1,155.01,16.30710103]
[1727713408671,6.4467,155.12,155.02,6.72628436]
[1727713409082,8.05903992,155.12,155.02,6.72628436]
[1727713409958,6.4467,155.12,155.03,1.289872]
[1727713410555,1.61233978,155.11,155.02,6.72628436]
[1727713410761,15.0615,155.1,155.02,6.72628436]
[1727713410985,1.61246329,155.09,155.02,6.72628436]
[1727713411488,15.0615,155.1,155.02,6.72628436]
[1727713412352,15.0615,155.1,155.03,1.28992802]
[1727713413056,15.0615,155.1,155.02,6.72628436]
[1727713414687,1.61233604,155.09,155.02,6.72628436]
[1727713416192,15.0615,155.1,155.03,1.28992744]
[1727713417906,15.0615,155.1,155.03,17.59702847]
[1727713418403,15.0615,155.1,155.03,16.30710103]
[1727713418872,1.61234222,155.09,155.02,6.72628436]
[1727713419198,6.3248,155.08,155.02,6.72628436]
[1727713419383,1.61261264,155.07,154.97,25.42324356]
[1727713419713,1.61261264,155.07,154.99,6.72900769]
[1727713420805,15.157,155.06,154.99,6.72900769]
[1727713421088,1.61282137,155.05,154.99,6.72900769]
[1727713421868,1.61297138,155.04,154.99,6.72900769]
[1727713422073,21.6062,155.06,154.99,6.72900769]
[1727713423496,21.6062,155.06,154.95,48.81083088]
[1727713423700,21.6062,155.06,154.96,6.73274842]
[1727713423890,23.21917094,155.06,154.96,6.73274842]
[1727713424291,21.6062,155.06,154.96,6.73274842]
[1727713424678,15.157,155.06,154.96,6.73274842]
[1727713424887,15.157,155.06,154.97,17.59732111]
[1727713426901,15.157,155.06,154.99,16.30710103]
[1727713427685,15.157,155.06,155.0,1.29011566]
[1727713428291,15.157,155.06,154.99,16.30710103]
[1727713429810,1.61252674,155.05,154.99,16.30710103]
[1727713432686,15.157,155.06,154.99,16.30710103]
[1727713433487,15.157,155.06,154.96,6.73274842]
[1727713433488,15.157,155.06,155.01,16.30710103]
[1727713433695,15.157,155.06,155.02,1.28994415]
[1727713434306,15.157,155.06,155.01,16.30710103]
[1727713436710,15.157,155.06,155.02,1.28997384]
[1727713436896,15.157,155.06,155.01,16.30710103]
[1727713438613,1.61256965,155.05,155.01,16.30710103]
[1727713440788,15.157,155.06,155.01,16.30710103]
[1727713441695,1.61259199,155.05,155.01,16.30710103]
[1727713443122,15.157,155.06,155.01,16.30710103]
[1727713443618,1.6125887,155.05,155.03,10.47293596]
[1727713443798,15.157,155.06,155.03,10.47293596]
[1727713449206,1.61258052,155.05,155.03,10.47293596]
[1727713450116,15.157,155.06,155.03,10.47293596]
[1727713451525,6.3248,155.08,155.05,10.47293596]
[1727713452124,1.6123297,155.07,155.05,10.47293596]
[1727713452625,1.6123297,155.07,154.98,16.0507]
[1727713452820,6.3248,155.08,155.02,10.47293596]
[1727713453719,1.61256517,155.07,155.02,10.47293596]
[1727713454112,6.3248,155.08,155.02,10.47293596]
[1727713458913,6.3248,155.08,155.04,10.47293596]
[1727713459502,6.3248,155.08,155.06,10.47293596]
[1727713459704,16.1053,155.1,155.06,10.47293596]
[1727713459904,16.1053,155.1,155.08,10.47293596]
[1727713461405,1.61213407,155.09,154.99,5.83653533]
[1727713461736,1.61213407,155.09,155.05,10.47293596]
[1727713462220,16.1053,155.1,155.05,10.47293596]
[1727713462719,16.1053,155.1,155.07,10.47293596]
[1727713466925,1.61215799,155.09,155.07,10.47293596]
[1727713467222,1.61215799,155.09,155.0,6.72783073]
[1727713467421,1.61215799,155.09,155.02,10.47293596]
[1727713468225,16.1053,155.1,155.02,10.47293596]
[1727713468530,17.71784282,155.1,155.02,10.47293596]
[1727713469527,17.71784282,155.1,155.0,23.09242984]
[1727713471407,16.1053,155.1,155.0,23.09242984]
[1727713471734,1.61254203,155.09,155.0,23.09242984]
[1727713472028,17.71783929,155.1,155.0,23.09242984]
[1727713475803,16.1053,155.1,155.01,1.29002681]
[1727713476421,17.71779167,155.1,155.0,23.09242984]
[1727713477014,24.16519167,155.1,155.0,23.09242984]
[1727713477612,17.71779167,155.1,155.0,23.09242984]
[1727713479529,24.16529167,155.1,155.0,23.09242984]
[1727713479711,6.2518,155.09,155.0,23.09242984]
[1727713480331,1.61257069,155.08,155.0,23.09242984]
[1727713481035,6.2518,155.09,155.0,23.09242984]
[1727713482013,6.2518,155.09,155.02,16.36459911]
[1727713482424,6.2518,155.09,155.03,1.29000357]
[1727713482625,16.1053,155.1,155.08,16.36459911]
[1727713483135,6.0987,155.13,155.08,16.36459911]
[1727713483336,6.0987,155.13,155.09,1.28948742]
[1727713483518,6.0987,155.13,155.1,16.36459911]
[1727713485029,16.1009,155.14,155.11,1.28939189]
[1727713485438,16.1009,155.14,155.12,16.36459911]
[1727713485621,6.0258,155.17,155.12,16.36459911]
[1727713485823,16.5555,155.18,155.14,16.36459911]
[1727713491816,16.5555,155.18,155.16,10.45449004]
[1727713492824,6.2982,155.21,155.16,10.45449004]
[1727713493510,6.2982,155.21,155.09,1.28899682]
[1727713493511,6.2982,155.21,155.18,10.45449004]
[1727713493714,6.3673,155.25,155.2,10.45449004]
[1727713493940,6.3673,155.25,155.22,10.45449004]
[1727713494331,15.257,155.26,155.24,10.45449004]
[1727713494820,21.4375,155.3,155.24,10.45449004]
[1727713495014,21.4375,155.3,155.26,10.45449004]
[1727713495740,21.4375,155.3,155.23,16.31561841]
[1727713496229,1.61045699,155.29,155.19,16.31561841]
[1727713496540,27.8767,155.3,155.19,16.31561841]
[1727713498635,8.05000545,155.29,155.19,16.31561841]
[1727713498837,6.4399,155.28,155.19,16.31561841]
[1727713499043,1.61065138,155.27,155.19,16.31561841]
[1727713499247,1.61065138,155.27,155.17,16.31561841]
[1727713502142,6.4396,155.29,155.19,16.31561841]
[1727713502535,1.61062854,155.28,155.19,16.31561841]
[1727713502843,8.05082854,155.28,155.19,16.31561841]
[1727713503040,6.4405,155.27,155.17,16.31561841]
[1727713503251,1.61076312,155.26,155.17,16.31561841]
[1727713503720,6.4402,155.28,155.17,16.31561841]
[1727713504850,1.61076084,155.27,155.17,16.31561841]
[1727713505618,6.4402,155.28,155.17,16.31561841]
[1727713506449,16.0301,155.26,155.17,16.31561841]
[1727713506653,6.5956,155.25,155.17,16.31561841]
[1727713507225,1.6108684,155.24,155.15,16.31561841]
[1727713508551,6.5956,155.25,155.16,1.28872644]
[1727713508727,6.5956,155.25,155.17,16.31561841]
[1727713508926,6.5956,155.25,155.18,1.28865271]
[1727713509327,6.5956,155.25,155.17,16.31561841]
[1727713512041,6.5956,155.25,155.17,3.81561841]
[1727713513060,6.5956,155.25,155.18,1.28860971]
[1727713513350,6.5956,155.25,155.19,16.31561841]
[1727713513553,6.5956,155.25,155.2,1.28849969]
[1727713514944,6.5956,155.25,155.21,16.31561841]
[1727713515235,16.0301,155.26,155.22,1.28827398]
[1727713515533,6.1538,155.3,155.22,1.28827398]
[1727713515534,21.7849,155.3,155.23,16.31561841]
[1727713515740,21.7849,155.3,155.24,1.28808923]
[1727713516238,21.7849,155.3,155.25,16.31561841]
[1727713517438,21.7849,155.3,155.26,1.28806865]
[1727713517647,15.6311,155.3,155.26,1.28806865]
[1727713517837,22.8970714,155.34,155.26,1.28806865]
[1727713518039,22.8970714,155.34,155.26,16.31561841]
[1727713518341,22.8970714,155.34,155.27,1.28783947]
[1727713519441,22.8970714,155.34,155.28,16.31561841]
[1727713520155,22.8970714,155.34,155.29,1.28775603]
[1727713520364,22.8970714,155.34,155.28,16.31561841]
[1727713520657,24.5066454,155.34,155.28,16.31561841]
[1727713520851,22.8970714,155.34,155.28,16.31561841]
[1727713522338,24.50664903,155.34,155.28,16.31561841]
[1727713524239,22.8970714,155.34,155.28,16.31561841]
[1727713524441,22.8970714,155.34,155.29,1.28776317]
[1727713524636,22.8970714,155.34,155.28,16.31561841]
[1727713525258,24.50658212,155.34,155.28,16.31561841]
[1727713527372,22.8970714,155.34,155.28,16.31561841]
[1727713527539,1.60975956,155.33,155.28,10.43764005]
[1727713528349,1.60975956,155.33,155.26,10.43764005]
[1727713528853,22.8970714,155.34,155.26,10.43764005]
[1727713531661,22.8970714,155.34,155.28,10.43764005]
[1727713532161,22.8970714,155.34,155.3,10.43764005]
[1727713534064,22.8970714,155.34,155.32,10.43764005]
[1727713534366,16.2623714,155.34,155.32,10.43764005]
[1727713535973,17.87188085,155.34,155.25,21.30306594]
[1727713536262,17.87188085,155.34,155.27,10.43764005]
[1727713536865,16.2623714,155.34,155.31,10.43764005]
[1727713541464,1.60959637,155.33,155.29,10.43764005]
[1727713541851,16.2623714,155.34,155.29,10.43764005]
[1727713542062,16.2623714,155.34,155.31,10.43764005]
[1727713543970,17.87186834,155.34,155.31,10.43764005]
[1727713546567,16.2623714,155.34,155.31,10.43764005]
[1727713548275,17.87197762,155.34,155.31,10.43764005]
[1727713548468,16.2623714,155.34,155.31,10.43764005]
[1727713551677,17.87197668,155.34,155.31,10.43764005]
[1727713552358,16.2623714,155.34,155.31,10.43764005]
[1727713553376,1.60960736,155.33,155.27,10.43764005]
[1727713554386,16.2623714,155.34,155.27,10.43764005]
[1727713555168,16.2623714,155.34,155.28,1.28781782]
[1727713555368,16.2623714,155.34,155.27,10.43764005]
[1727713558991,1.60982413,155.33,155.27,10.43764005]
[1727713561486,16.2623714,155.34,155.29,10.43764005]
[1727713561862,16.2623714,155.34,155.31,10.43764005]
[1727713563971,16.2623714,155.34,155.29,10.43764005]
[1727713564190,1.60962527,155.33,155.29,10.43764005]
[1727713565397,16.2623714,155.34,155.29,10.43764005]
[1727713565786,16.2623714,155.34,155.31,10.43764005]
[1727713566892,17.87193295,155.34,155.31,10.43764005]
[1727713567106,17.87193295,155.34,155.24,6.72324402]
[1727713567298,17.87193295,155.34,155.28,10.43764005]
[1727713568074,16.2623714,155.34,155.28,10.43764005]
[1727713568496,16.2623714,155.34,155.3,10.43764005]
[1727713572086,16.2623714,155.34,155.31,1.28758442]
[1727713572293,16.2623714,155.34,155.3,10.43764005]
[1727713574176,0.8471714,155.34,155.32,10.43764005]
[1727713582217,0.8471714,155.34,155.33,1.28746344]
[1727713583993,0.8471714,155.34,155.32,10.43764005]
[1727713587898,0.8471714,155.34,155.33,1.28735867]
[1727713589611,0.8471714,155.34,155.32,10.43764005]
[1727713592885,0.8471714,155.34,155.28,5.91156018]
[1727713592886,0.8471714,155.34,155.29,6.72163387]
[1727713593094,0.8471714,155.34,155.33,10.43764005]
[1727713606826,0.8471714,155.34,155.3,6.72186642]
[1727713607123,0.8471714,155.34,155.33,10.43764005]
[1727713617609,468.75804255,155.35,155.33,10.43764005]
[1727713618436,468.75804255,155.35,155.34,6.4374]
[1727713623835,468.75804255,155.35,155.34,7.724764]
[1727713629338,468.75804255,155.35,155.34,6.4374]
[1727713630621,468.75804255,155.35,155.34,7.72476654]
[1727713630914,338.37704005,155.35,155.34,15.44700604]
[1727713631142,328.18644005,155.35,155.34,15.44700604]
[1727713631441,322.47854005,155.35,155.34,14.1596395]
[1727713631628,322.47854005,155.35,155.34,6.4374]
[1727713631836,322.47854005,155.35,155.34,16.87504005]
[1727713632631,319.02074005,155.35,155.34,16.87504005]